bitfinex-derivatives/quotes_BTCF0:USTF0_20250828
["timestamp","ask_amount","ask_price","bid_price","bid_amount"]
[1756389755722,0.41684,112890.0,112880.0,0.01625]
[1756389756125,0.41684,112890.0,112880.0,0.1048336]
[1756389757217,0.41684,112890.0,112880.0,0.66134664]
[1756389757416,0.3608,112890.0,112880.0,0.91134664]
[1756389757611,0.3608,112900.0,112890.0,0.0885758]
[1756389757812,0.38333,112900.0,112890.0,0.66133884]
[1756389758014,0.3608,112900.0,112890.0,1.50793884]
[1756389758211,0.3608,112900.0,112890.0,1.49793884]
[1756389758421,0.3608,112900.0,112890.0,1.74793884]
[1756389759124,0.3608,112900.0,112890.0,0.91133884]
[1756389759321,0.3608,112900.0,112890.0,1.75785884]
[1756389760616,0.37908301,112910.0,112900.0,0.104818]
[1756389760825,0.37908301,112910.0,112900.0,0.66133104]
[1756389761125,0.01828301,112910.0,112900.0,1.27213104]
[1756389761418,0.37908301,112940.0,112930.0,0.0985445]
[1756389761619,0.3608,112950.0,112940.0,0.1047866]
[1756389761825,0.3608,112950.0,112940.0,0.66129964]
[1756389762123,0.3608,112960.0,112950.0,0.01625]
[1756389762124,0.38333,112960.0,112950.0,0.01625]
[1756389762323,0.41684,112960.0,112940.0,0.0885319]
[1756389762623,0.41684,112950.0,112940.0,0.1047819]
[1756389763522,0.41684,112950.0,112940.0,0.01625]
[1756389763722,0.41684,112950.0,112930.0,0.12263295]
[1756389763723,0.03351,112940.0,112930.0,0.12263295]
[1756389763915,0.41684,112940.0,112930.0,0.12263295]
[1756389764225,0.41684,112950.0,112940.0,0.1047866]
[1756389764912,1.22335304,112950.0,112930.0,0.01784585]
[1756389765117,0.97335304,112940.0,112930.0,0.01784585]
[1756389766523,1.22335304,112940.0,112930.0,0.01784585]
[1756389769225,1.24778899,112940.0,112930.0,0.01784585]
[1756389770632,1.24778899,112940.0,112930.0,0.10639035]
[1756389771125,0.41684,112940.0,112930.0,0.10639035]
[1756389772327,0.41684,112940.0,112930.0,0.12264035]
[1756389773526,0.41684,112940.0,112930.0,0.67915339]
[1756389773726,0.41684,112940.0,112930.0,1.52487339]
[1756389773727,0.38333,112940.0,112930.0,1.52487339]
[1756389774034,0.41684,112950.0,112940.0,0.1047866]
[1756389774528,0.41684,112950.0,112940.0,0.67017318]
[1756389775124,0.3608,112960.0,112950.0,0.1047788]
[1756389775322,0.3608,112960.0,112950.0,1.50697184]
[1756389776025,0.41684,112970.0,112960.0,0.098521]
[1756389776220,0.41684,112970.0,112960.0,0.088521]
[1756389776522,0.05604,112960.0,112950.0,0.9504536]
[1756389776728,0.41684,112960.0,112950.0,1.50696664]
[1756389777030,0.41684,112960.0,112950.0,0.9504536]
[1756389777325,0.38333,112960.0,112950.0,1.50696664]
[1756389777827,0.3608,112960.0,112950.0,1.50696664]
[1756389778623,0.41684,112960.0,112950.0,0.9504536]
[1756389778823,0.41684,112960.0,112950.0,1.50680664]
[1756389779023,0.3608,112960.0,112950.0,1.50680664]
[1756389779423,0.3608,112960.0,112950.0,1.75680664]
[1756389779623,0.41684,112970.0,112960.0,0.1047709]
[1756389779820,0.05604,112970.0,112960.0,0.66128394]
[1756389780330,0.05604,112970.0,112960.0,0.1047709]
[1756389780331,0.05446,112970.0,112960.0,0.1047709]
[1756389780532,0.41526,112970.0,112960.0,0.1047709]
[1756389780727,0.38333,112970.0,112960.0,0.1047709]
[1756389781134,0.38333,112970.0,112960.0,0.66128394]
[1756389781433,0.41526,112970.0,112960.0,0.0965909]
[1756389781634,0.41526,112970.0,112960.0,0.1016309]
[1756389782426,0.41526,112970.0,112960.0,0.65814394]
[1756389782632,0.05446,112970.0,112960.0,0.65814394]
[1756389783032,0.02253,112970.0,112960.0,0.65814394]
[1756389783230,0.43328813,112980.0,112970.0,0.0885131]
[1756389783430,0.07248813,112980.0,112970.0,1.50333614]
[1756389783632,0.3608,112990.0,112980.0,0.1016152]
[1756389783830,0.41352,112990.0,112980.0,0.65812824]
[1756389784021,0.41352,112990.0,112980.0,0.1016152]
[1756389784225,0.41352,112990.0,112980.0,0.10536964]
[1756389784429,0.41352,112990.0,112980.0,0.17556973]
[1756389784931,0.41352,112990.0,112980.0,0.17052973]
[1756389785133,0.41352,112990.0,112980.0,0.17556973]
[1756389785430,0.41352,112990.0,112980.0,0.07395453]
[1756389785735,1.22003304,112990.0,112980.0,0.07395453]
[1756389786535,1.24447155,112990.0,112980.0,0.03933453]
[1756389786729,1.24447155,112990.0,112960.0,0.98433525]
[1756389786730,0.03193,112980.0,112960.0,0.98433525]
[1756389786931,0.41352,112970.0,112960.0,1.00571525]
[1756389787428,0.3608,112970.0,112960.0,1.81222829]
[1756389787627,0.3608,112980.0,112970.0,0.1214531]
[1756389787832,0.41352,112990.0,112980.0,0.1428252]
[1756389788029,0.43795663,112990.0,112980.0,0.21222523]
[1756389788839,0.43795663,112990.0,112980.0,0.06940003]
[1756389789041,0.40602663,112990.0,112970.0,0.0885099]
[1756389789236,0.41352,112980.0,112970.0,0.1098899]
[1756389789738,0.41352,112980.0,112970.0,0.1428299]
[1756389791131,0.41352,112980.0,112970.0,0.1098899]
[1756389791539,0.41352,112980.0,112970.0,0.1428299]
[1756389792737,0.02079,112980.0,112970.0,0.1428299]
[1756389792941,0.41352,112980.0,112970.0,0.21229604]
[1756389793245,0.41352,112980.0,112970.0,0.17935604]
[1756389793440,0.41352,112980.0,112970.0,0.06946294]
[1756389793650,0.38159,112980.0,112960.0,0.98409095]
[1756389793951,0.41352,112970.0,112960.0,1.00547095]
[1756389794646,0.05272,112980.0,112970.0,0.1428331]
[1756389795053,0.02079,112980.0,112970.0,0.69934614]
[1756389795650,0.41352,112980.0,112970.0,0.1428331]
[1756389796553,0.41352,112980.0,112970.0,1.05953408]
[1756389798353,0.38159,112980.0,112970.0,1.61604712]
[1756389798553,0.41352,112990.0,112980.0,0.0885053]
[1756389798855,0.41352,112990.0,112980.0,0.69933834]
[1756389798856,0.38159,112990.0,112980.0,0.69933834]
[1756389799250,0.41352,112990.0,112980.0,0.1428253]
[1756389799451,0.41352,112990.0,112980.0,0.69933834]
[1756389799650,0.38159,113000.0,112990.0,0.1098774]
[1756389799855,0.3608,113010.0,113000.0,0.1428096]
[1756389799856,0.38159,113010.0,113000.0,0.1428096]
[1756389800148,0.41352,113010.0,113000.0,0.1428096]
[1756389800348,0.41352,113010.0,113000.0,0.69932264]
[1756389800548,0.41352,113010.0,113000.0,1.54396264]
[1756389800854,0.41352,113010.0,113000.0,0.9874496]
[1756389801155,0.41352,113010.0,113000.0,0.99633613]
[1756389801352,0.38159,113010.0,113000.0,0.99633613]
[1756389801558,0.3608,113010.0,113000.0,1.80284917]
[1756389801857,0.43288232,113020.0,113010.0,0.1428017]
[1756389802054,0.43288232,113020.0,113010.0,0.69931474]
[1756389802456,0.43288232,113020.0,113010.0,0.1428017]
[1756389803053,0.43288232,113020.0,113010.0,0.1098617]
[1756389803357,0.43288232,113020.0,113010.0,0.9330017]
[1756389803853,0.03193,113010.0,113000.0,0.09737093]
[1756389804060,0.41352,113010.0,113000.0,0.84452]
[1756389804259,0.05272,113000.0,112990.0,0.121436]
[1756389804457,0.41352,113000.0,112990.0,0.932976]
[1756389804654,0.03193,112990.0,112980.0,2.37881354]
[1756389804958,0.39273,112990.0,112980.0,2.74553103]
[1756389805154,0.39273,112990.0,112980.0,2.75462162]
[1756389805354,0.39273,112990.0,112980.0,2.67587109]
[1756389806358,0.39273,112990.0,112980.0,2.75556111]
[1756389807054,0.03193,112990.0,112980.0,2.75556111]
[1756389807551,0.41352,113000.0,112990.0,0.1428174]
[1756389807857,0.41352,113010.0,113000.0,0.1428096]
[1756389808360,0.41352,113010.0,113000.0,0.9872096]
[1756389808658,0.38159,113010.0,113000.0,0.9872096]
[1756389808862,0.3608,113010.0,113000.0,1.54372264]
[1756389809362,0.41209232,113020.0,113010.0,0.1428018]
[1756389809363,0.43288232,113020.0,113010.0,0.1428018]
[1756389809752,0.40095232,113020.0,113010.0,0.1428018]
[1756389809949,0.40095232,113020.0,113010.0,0.69931484]
[1756389810160,0.01936232,113020.0,113010.0,0.77900486]
[1756389810550,0.01936232,113020.0,113010.0,1.02900486]
[1756389810749,0.01936232,113020.0,113010.0,1.31011484]
[1756389810955,0.01936232,113020.0,113010.0,1.53936967]
[1756389812057,0.07207232,113020.0,113010.0,0.24567056]
[1756389812258,0.43287232,113020.0,113010.0,1.09877233]
[1756389812461,0.43287232,113020.0,113010.0,0.9870818]
[1756389812762,0.3608,113020.0,113010.0,1.54359484]
[1756389812959,0.39183,113020.0,113010.0,1.54359484]
[1756389813161,0.38248,113030.0,113020.0,0.143444]
[1756389813363,0.02168,113030.0,113020.0,0.143444]
[1756389813663,0.02168,113030.0,113020.0,0.69995704]
[1756389813862,0.02168,113030.0,113020.0,0.77961707]
[1756389814064,0.02168,113030.0,113020.0,0.22310403]
[1756389814256,0.39183,113040.0,113020.0,0.22310403]
[1756389814257,0.41351,113040.0,113030.0,0.1434361]
[1756389814459,0.41351,113040.0,113030.0,0.9876361]
[1756389814959,0.41351,113040.0,113030.0,0.93695373]
[1756389815552,0.41351,113040.0,113030.0,1.05943983]
[1756389817465,0.41351,113040.0,113030.0,1.10503986]
[1756389817664,0.41351,113040.0,113030.0,1.13905986]
[1756389818364,0.41351,113040.0,113030.0,1.15895903]
[1756389818760,0.41351,113040.0,113030.0,0.19231293]
[1756389818955,0.41351,113040.0,113030.0,0.9358229]
[1756389819265,0.41351,113040.0,113030.0,1.045239]
[1756389819460,0.38248,113040.0,113030.0,1.079259]
[1756389819862,0.38248,113040.0,113030.0,1.15891903]
[1756389819863,0.41351,113040.0,113030.0,1.15891903]
[1756389820071,0.41351,113040.0,113030.0,1.079259]
[1756389821366,0.41351,113040.0,113030.0,0.201119]
[1756389821561,1.22002304,113040.0,113030.0,0.9357829]
[1756389821768,0.66351,113040.0,113030.0,0.0917029]
[1756389822068,1.22002304,113040.0,113030.0,0.180169]
[1756389822468,0.66351,113040.0,113030.0,0.0917029]
[1756389823067,1.22002304,113040.0,113030.0,0.180169]
[1756389823666,1.22002304,113040.0,113030.0,0.0917029]
[1756389825070,0.66351,113040.0,113030.0,0.0917029]
[1756389825375,1.22002304,113040.0,113030.0,0.0917029]
[1756389825769,1.24332081,113040.0,113030.0,0.0917029]
[1756389826572,0.99332081,113040.0,113030.0,0.180169]
[1756389827273,0.99332081,113040.0,113030.0,0.0917029]
[1756389827671,1.24332081,113040.0,113030.0,0.0917029]
[1756389828871,2.08732081,113040.0,113010.0,1.01213623]
[1756389829067,0.94834304,113020.0,113010.0,1.01213623]
[1756389829266,0.97002304,113020.0,113010.0,0.16813623]
[1756389829777,0.41351,113020.0,113010.0,0.22310623]
[1756389830275,0.41351,113020.0,113010.0,0.18908623]
[1756389831580,0.41351,113020.0,113010.0,0.22310623]
[1756389832474,0.41351,113020.0,113010.0,0.18908623]
[1756389832780,0.41351,113020.0,113010.0,0.18909173]
[1756389832974,0.97002304,113020.0,113010.0,0.18909173]
[1756389833176,0.97002304,113020.0,113010.0,0.22311173]
[1756389833370,0.41351,113020.0,113010.0,0.22311173]
[1756389833779,0.3608,113020.0,113010.0,0.22311173]
[1756389833980,0.41351,113030.0,113020.0,0.03402]
[1756389834283,0.41351,113030.0,113020.0,0.1434436]
[1756389834482,0.02168,113030.0,113020.0,0.69995664]
[1756389834782,0.3608,113030.0,113020.0,1.87357667]
[1756389835176,0.41351,113040.0,113030.0,0.1434357]
[1756389836470,0.41351,113040.0,113030.0,0.21391615]
[1756389836672,0.38248,113040.0,113030.0,0.29357618]
[1756389836870,0.41351,113040.0,113030.0,0.29357618]
[1756389837275,0.41351,113040.0,113030.0,0.25955618]
[1756389837580,1.22002304,113040.0,113030.0,0.15014048]
[1756389837779,0.05271,113030.0,113010.0,0.07966003]
[1756389837985,1.33082304,113020.0,113010.0,0.07966003]
[1756389838181,1.33082304,113020.0,113000.0,0.19135056]
[1756389838482,0.41351,113010.0,113000.0,0.30078976]
[1756389838684,0.41351,113010.0,113000.0,0.18909923]
[1756389839479,0.41351,113010.0,113000.0,0.22311923]
[1756389840474,0.41351,113010.0,113000.0,0.10061003]
[1756389840782,0.93899304,113010.0,112990.0,1.12376726]
[1756389840986,0.41259,113000.0,112990.0,0.18873673]
[1756389841788,0.41259,113000.0,112990.0,0.22162673]
[1756389842185,0.41259,113000.0,112990.0,0.22262673]
[1756389842580,0.41259,113000.0,112990.0,0.16915673]
[1756389842782,1.21910304,113000.0,112990.0,0.001]
[1756389842982,1.24239369,113000.0,112980.0,0.0177805]
[1756389843182,2.06206304,112990.0,112970.0,0.15160101]
[1756389843382,2.06206304,112990.0,112960.0,0.01779475]
[1756389843383,0.05179,112970.0,112960.0,0.01779475]
[1756389843594,1.81306304,112970.0,112960.0,0.01779475]
[1756389843978,1.83634735,112970.0,112960.0,0.01779475]
[1756389845087,1.83434735,112970.0,112960.0,0.01779475]
[1756389845691,1.81106304,112970.0,112960.0,0.10631535]
[1756389845891,0.41459,112970.0,112960.0,0.12689535]
[1756389846194,1.25863,112970.0,112960.0,0.15978535]
[1756389846387,0.41259,112970.0,112960.0,0.15978535]
[1756389846588,0.41459,112970.0,112960.0,0.15978535]
[1756389847188,0.97110304,112970.0,112960.0,0.01779475]
[1756389847492,1.22110304,112970.0,112960.0,0.01779475]
[1756389847692,1.24505527,112970.0,112960.0,0.01779475]
[1756389849396,0.68854223,112970.0,112960.0,0.01779475]
[1756389849596,1.24505527,112970.0,112960.0,0.01779475]
[1756389850392,0.05179,112940.0,112930.0,0.17762833]
[1756389850598,0.96910304,112940.0,112930.0,0.19820833]
[1756389850897,0.96910304,112940.0,112930.0,0.23109833]
[1756389851397,0.41259,112940.0,112930.0,0.23109833]
[1756389851599,0.41259,112940.0,112930.0,0.19820833]
[1756389852090,0.41259,112940.0,112930.0,0.10966993]
[1756389852290,0.38156,112940.0,112920.0,0.68525235]
[1756389852493,0.04979,112930.0,112920.0,0.70583675]
[1756389852696,0.41059,112930.0,112920.0,0.15079675]
[1756389853090,0.38156,112940.0,112930.0,0.1420141]
[1756389853286,0.3608,112940.0,112930.0,0.1420141]
[1756389853490,0.3608,112940.0,112930.0,0.3920141]
[1756389853690,0.38256,112940.0,112930.0,0.3920141]
[1756389854094,0.38256,112940.0,112930.0,0.94852714]
[1756389854095,0.3618,112940.0,112930.0,0.94852714]
[1756389855101,0.3618,112940.0,112930.0,1.02053622]
[1756389855597,0.3628,112940.0,112930.0,1.02053622]
[1756389856102,0.3628,112940.0,112930.0,1.86485622]
[1756389856503,0.37847524,112950.0,112940.0,0.0885362]
[1756389856704,0.01767524,112950.0,112940.0,0.69851924]
[1756389857003,0.01767524,112950.0,112940.0,1.05931924]
[1756389857196,0.01767524,112950.0,112940.0,0.5028062]
[1756389857401,0.01767524,112950.0,112940.0,0.69851924]
[1756389857902,0.02067524,112950.0,112940.0,0.69851924]
[1756389858504,0.003,112950.0,112940.0,0.69851924]
[1756389859210,0.003,112950.0,112940.0,0.1420062]
[1756389859211,0.41759,112950.0,112940.0,0.1420062]
[1756389859605,0.38656,112950.0,112940.0,0.1420062]
[1756389859808,0.005,112950.0,112940.0,0.1420062]
[1756389860004,0.004,112950.0,112940.0,0.1420062]
[1756389860207,0.002,112950.0,112940.0,0.1420062]
[1756389861203,0.3628,112950.0,112940.0,0.1420062]
[1756389861404,0.41459,112950.0,112940.0,0.1420062]
[1756389862010,0.3628,112950.0,112940.0,0.1420062]
[1756389862503,0.3628,112950.0,112940.0,0.69851924]
[1756389862910,0.41459,112950.0,112940.0,0.1420062]
[1756389863101,0.41459,112950.0,112940.0,0.02058]
[1756389863303,0.05179,112940.0,112930.0,0.18369961]
[1756389863507,0.96910304,112940.0,112930.0,0.09258908]
[1756389863709,0.96910304,112940.0,112930.0,0.02058]
[1756389864212,0.96910304,112940.0,112930.0,0.05347]
[1756389864403,0.38156,112940.0,112920.0,1.07303341]
[1756389864599,0.38156,112940.0,112920.0,1.01481288]
[1756389864600,0.41259,112930.0,112920.0,1.01481288]
[1756389864806,0.41159,112930.0,112920.0,1.01481288]
[1756389865308,0.3608,112930.0,112920.0,1.01481288]
[1756389866308,0.3608,112930.0,112920.0,0.91748853]
[1756389866514,0.38156,112930.0,112920.0,0.91948853]
[1756389866711,0.38156,112930.0,112920.0,1.00804043]
[1756389866922,0.41259,112930.0,112920.0,1.00804043]
[1756389867214,0.41259,112930.0,112920.0,1.00604043]
[1756389867215,0.41359,112930.0,112920.0,1.00604043]
[1756389867711,0.41359,112930.0,112920.0,0.97315043]
[1756389867908,0.41359,112930.0,112920.0,1.00604043]
[1756389868409,0.001,112930.0,112920.0,1.07581028]
[1756389868610,0.3618,112930.0,112920.0,1.08475319]
[1756389869011,0.001,112930.0,112920.0,1.64126623]
[1756389869211,0.001,112930.0,112920.0,2.25206623]
[1756389869514,0.3608,112950.0,112940.0,0.1420063]
[1756389869716,0.3608,112950.0,112940.0,0.9864463]
[1756389870217,0.38156,112950.0,112940.0,0.9864463]
[1756389870519,0.41343,112950.0,112940.0,0.9864463]
[1756389870719,1.21994304,112950.0,112940.0,0.02058]
[1756389870915,0.0539,112940.0,112930.0,0.02094]
[1756389871116,0.93934304,112940.0,112920.0,1.06199879]
[1756389871320,0.39267,112930.0,112920.0,1.06199879]
[1756389871714,0.4147,112940.0,112930.0,0.1401641]
[1756389872609,0.38283,112940.0,112930.0,0.1401641]
[1756389872821,0.4147,112940.0,112930.0,0.1401641]
[1756389873017,0.93934304,112940.0,112920.0,0.09833129]
[1756389873327,0.0539,112920.0,112910.0,0.1401772]
[1756389873617,0.4147,112920.0,112910.0,0.1489328]
[1756389874211,0.03187,112910.0,112900.0,0.11169053]
[1756389874413,0.97121304,112910.0,112900.0,0.02094]
[1756389875218,0.97121304,112910.0,112900.0,0.1095076]
[1756389875722,0.97121304,112910.0,112900.0,0.18184741]
[1756389875921,0.4147,112910.0,112900.0,0.21252741]
[1756389876722,0.4167,112910.0,112900.0,0.21252741]
[1756389876924,0.97321304,112910.0,112900.0,0.09327981]
[1756389877216,0.4167,112910.0,112900.0,0.18184741]
[1756389877417,0.4167,112910.0,112900.0,0.21252741]
[1756389878011,0.4167,112910.0,112900.0,0.09327981]
[1756389878012,0.4177,112910.0,112900.0,0.09327981]
[1756389878519,0.02203,112890.0,112880.0,0.13263053]
[1756389878722,0.02203,112890.0,112860.0,0.6291011]
[1756389878723,0.93934304,112890.0,112870.0,0.23972873]
[1756389879019,0.93934304,112890.0,112870.0,0.13263053]
[1756389879020,0.97121304,112880.0,112870.0,0.13263053]
[1756389879322,0.97121304,112880.0,112870.0,0.14921884]
[1756389879323,0.4147,112880.0,112870.0,0.14921884]
[1756389879520,1.22121304,112880.0,112860.0,0.1317825]
[1756389879720,0.97121304,112870.0,112860.0,0.1317825]
[1756389879916,0.97121304,112870.0,112860.0,0.04103197]
[1756389880121,0.4147,112870.0,112860.0,0.07171197]
[1756389880317,0.4147,112870.0,112860.0,0.16031097]
[1756389880624,0.4137,112870.0,112860.0,0.16031097]
[1756389881024,0.3598,112870.0,112860.0,1.0378075]
[1756389881213,0.4147,112880.0,112870.0,0.1402111]
[1756389881413,0.38283,112880.0,112860.0,0.55405639]
[1756389881618,0.0539,112870.0,112860.0,0.57599639]
[1756389882128,0.02203,112870.0,112860.0,0.57599639]
[1756389882524,0.4147,112880.0,112870.0,0.1402112]
[1756389882718,0.38283,112880.0,112870.0,0.1402112]
[1756389883120,0.93934304,112880.0,112860.0,0.16057849]
[1756389883423,0.61041304,112870.0,112860.0,0.02194]
[1756389883626,0.97121304,112870.0,112860.0,0.001]
[1756389883826,0.03187,112860.0,112850.0,0.88442111]
[1756389884027,0.4147,112860.0,112850.0,0.99396801]
[1756389885628,0.4147,112860.0,112850.0,1.06622003]
[1756389885629,0.3608,112860.0,112850.0,1.06622003]
[1756389885826,0.3608,112860.0,112850.0,1.87273307]
[1756389886026,0.3608,112870.0,112860.0,0.109539]
[1756389886224,0.38283,112870.0,112860.0,0.140219]
[1756389886418,0.4147,112870.0,112860.0,0.05162]
[1756389886624,0.7755,112870.0,112860.0,0.02094]
[1756389886930,0.03187,112860.0,112850.0,1.04727483]
[1756389887227,0.39267,112860.0,112850.0,1.04727483]
[1756389887430,0.39267,112860.0,112850.0,1.04627483]
[1756389887632,0.39267,112860.0,112850.0,1.04427483]
[1756389888129,0.39267,112860.0,112850.0,0.84484]
[1756389888130,0.97121304,112860.0,112850.0,0.84484]
[1756389888430,0.4147,112860.0,112850.0,0.9573869]
[1756389888825,0.4147,112860.0,112850.0,0.9880669]
[1756389889021,0.38283,112860.0,112850.0,0.9880669]
[1756389889220,0.38283,112860.0,112850.0,1.06972784]
[1756389889534,0.3608,112860.0,112850.0,1.06972784]
[1756389889724,0.4147,112860.0,112850.0,0.02394]
[1756389889927,0.4147,112860.0,112850.0,0.1125469]
[1756389890128,0.4147,112860.0,112850.0,0.1432269]
[1756389890330,0.4147,112860.0,112850.0,0.15217105]
[1756389890633,0.38283,112860.0,112850.0,0.15217105]
[1756389890829,0.3608,112860.0,112850.0,0.95868409]
[1756389891130,0.38283,112880.0,112870.0,0.1402085]
[1756389891325,0.4147,112880.0,112870.0,0.1402085]
[1756389892027,0.4147,112880.0,112870.0,0.02094]
[1756389892440,0.94034304,112880.0,112860.0,0.9649537]
[1756389892634,0.0539,112870.0,112860.0,0.9858937]
[1756389892931,0.4147,112870.0,112860.0,0.955219]
[1756389893320,0.4147,112870.0,112860.0,0.8973]
[1756389893525,0.97121304,112870.0,112860.0,0.84568]
[1756389893933,1.22121304,112870.0,112860.0,0.84568]
[1756389894529,1.23898302,112870.0,112860.0,0.84568]
[1756389895032,2.05247302,112870.0,112850.0,0.09754505]
[1756389895227,0.4147,112860.0,112850.0,0.14916505]
[1756389895831,0.38283,112860.0,112850.0,0.22176389]
[1756389896125,1.25575578,112870.0,112860.0,0.088599]
[1756389896126,0.37868578,112870.0,112860.0,0.088599]
[1756389896332,0.37868578,112870.0,112860.0,0.69673204]
[1756389896633,0.40071578,112870.0,112860.0,0.140219]
[1756389896932,0.3608,112870.0,112860.0,0.69673204]
[1756389897130,0.3608,112880.0,112870.0,0.1402111]
[1756389897335,2.1397,112890.0,112880.0,0.1402033]
[1756389897842,0.0539,112880.0,112870.0,0.1192664]
[1756389898134,0.4147,112880.0,112870.0,0.02094]
[1756389898339,0.4157,112880.0,112870.0,0.1402112]
[1756389899630,0.4157,112880.0,112870.0,0.05162]
[1756389900028,0.97221304,112880.0,112870.0,0.05162]
[1756389900239,0.05111,112860.0,112850.0,1.06576479]
[1756389900426,0.41191,112860.0,112850.0,1.17745532]
[1756389900738,0.41191,112860.0,112850.0,1.06576479]
[1756389900933,0.38206,112860.0,112850.0,1.06576479]
[1756389901433,0.3608,112860.0,112850.0,1.87227783]
[1756389901738,0.3608,112860.0,112850.0,1.87527783]
[1756389901934,0.39065,112860.0,112850.0,1.06876989]
[1756389902536,0.41191,112870.0,112860.0,0.1392149]
[1756389902837,0.41191,112870.0,112860.0,0.1088849]
[1756389903034,0.41191,112870.0,112860.0,0.1392149]
[1756389903334,0.41191,112870.0,112860.0,0.05062]
[1756389903540,0.93857304,112870.0,112850.0,1.01814479]
[1756389903735,0.39065,112860.0,112850.0,1.04847479]
[1756389903936,0.39065,112860.0,112850.0,1.04547479]
[1756389904451,0.39065,112870.0,112860.0,0.139219]
[1756389904635,0.3608,112870.0,112860.0,0.139219]
[1756389904938,0.41191,112870.0,112860.0,0.139219]
[1756389905338,0.3608,112870.0,112860.0,0.139219]
[1756389905741,0.3608,112870.0,112860.0,0.69573204]
[1756389905942,0.38206,112870.0,112860.0,0.139219]
[1756389906142,0.41191,112870.0,112860.0,0.139219]
[1756389906535,0.38206,112870.0,112860.0,0.139219]
[1756389906735,0.41191,112870.0,112860.0,0.139219]
[1756389906936,0.3608,112880.0,112870.0,0.1392112]
[1756389907131,0.3608,112880.0,112870.0,1.54072424]
[1756389907332,0.42987851,112890.0,112880.0,0.1392033]
[1756389907536,0.3608,112890.0,112880.0,0.69571634]
[1756389908042,0.3608,112890.0,112880.0,0.94571634]
[1756389908435,0.38206,112890.0,112880.0,0.94571634]
[1756389909134,0.38206,112890.0,112880.0,0.3892033]
[1756389909337,0.3618,112890.0,112880.0,0.3892033]
[1756389909644,0.41291,112890.0,112880.0,0.9842033]
[1756389909844,0.41391,112890.0,112880.0,0.9842033]
[1756389910543,0.3628,112890.0,112880.0,0.9842033]
[1756389910736,0.002,112890.0,112880.0,1.54071634]
[1756389910940,0.002,112890.0,112880.0,1.79071634]
[1756389911136,0.002,112890.0,112880.0,2.15151634]
[1756389912643,0.001,112890.0,112880.0,2.15151634]
[1756389912841,0.41191,112900.0,112890.0,0.1391955]
[1756389913147,0.41191,112900.0,112890.0,0.9841155]
[1756389913341,0.41191,112900.0,112890.0,0.89554]
[1756389913542,0.41191,112900.0,112890.0,0.89558]
[1756389913742,0.41191,112900.0,112890.0,0.05062]
[1756389913943,0.41191,112900.0,112890.0,0.9841155]
[1756389913944,0.41291,112900.0,112890.0,0.9841155]
[1756389914545,0.3618,112900.0,112890.0,0.9841155]
[1756389914746,0.3628,112900.0,112890.0,1.56074751]
[1756389915049,0.002,112900.0,112890.0,1.81074751]
[1756389915343,0.002,112900.0,112890.0,2.28323804]
[1756389915548,0.002,112900.0,112890.0,1.92243804]
[1756389915851,0.002,112900.0,112890.0,2.28323804]
[1756389917649,0.002,112900.0,112890.0,1.92243804]
[1756389917849,0.001,112900.0,112890.0,1.92343804]
[1756389918352,0.02226,112900.0,112890.0,1.116885]
[1756389918650,0.001,112900.0,112890.0,1.116885]
[1756389919448,0.001,112900.0,112890.0,1.67339804]
[1756389919650,0.41191,112910.0,112900.0,0.0885676]
[1756389919847,0.41191,112910.0,112900.0,0.1391876]
[1756389920047,0.37902288,112920.0,112910.0,0.1088498]
[1756389920252,0.37902288,112920.0,112910.0,0.9840198]
[1756389920450,0.43013288,112920.0,112910.0,0.9536898]
[1756389920643,0.43013288,112920.0,112910.0,0.99309775]
[1756389921749,0.02022288,112920.0,112910.0,1.91041079]
[1756389921955,0.002,112920.0,112910.0,2.16041079]
[1756389922151,0.38206,112940.0,112930.0,0.1391641]
[1756389922361,0.38206,112940.0,112930.0,0.9841241]
[1756389922562,0.41191,112940.0,112930.0,0.9841241]
[1756389923862,0.38306,112940.0,112930.0,1.05325735]
[1756389924263,0.41291,112940.0,112930.0,1.05325735]
[1756389924565,0.001,112940.0,112930.0,1.05325735]
[1756389924761,0.3618,112940.0,112930.0,1.60977039]
[1756389925566,0.39165,112940.0,112930.0,1.05325735]
[1756389925755,0.3618,112940.0,112930.0,1.05325735]
[1756389925962,0.001,112940.0,112930.0,1.05425735]
[1756389926164,0.3618,112940.0,112930.0,1.05425735]
[1756389926359,0.001,112940.0,112930.0,1.05425735]
[1756389926864,0.3618,112940.0,112930.0,1.61077039]
[1756389927070,0.001,112940.0,112930.0,1.61077039]
[1756389927372,0.3618,112940.0,112930.0,1.61077039]
[1756389927562,0.001,112940.0,112930.0,1.61077039]
[1756389927762,0.3618,112940.0,112930.0,1.61077039]
[1756389928061,0.39165,112940.0,112930.0,1.61077039]
[1756389928267,0.39165,112940.0,112930.0,1.05425735]
[1756389928670,0.41291,112940.0,112930.0,1.05393735]
[1756389928968,0.41291,112940.0,112930.0,0.20929735]
[1756389929356,0.41291,112940.0,112930.0,1.05393735]
[1756389929962,0.3618,112940.0,112930.0,1.05393735]
[1756389930365,0.39113,112940.0,112930.0,1.05393735]
[1756389932869,0.3618,112940.0,112930.0,1.05393735]
[1756389933064,0.3618,112940.0,112930.0,1.61045039]
[1756389933065,0.001,112940.0,112930.0,1.61045039]
[1756389933266,0.001,112940.0,112930.0,2.24127989]
[1756389933467,0.37869277,112960.0,112950.0,0.1391084]
[1756389933777,0.37869277,112960.0,112950.0,1.54018144]
[1756389934168,0.42899277,112960.0,112950.0,0.9836684]
[1756389934770,0.38177,112960.0,112950.0,0.9836684]
[1756389935275,0.3608,112960.0,112950.0,0.9836684]
[1756389935477,0.38177,112960.0,112950.0,0.9836684]
[1756389935776,0.4111,112960.0,112950.0,0.1391084]
[1756389936777,0.3618,112960.0,112950.0,0.1391084]
[1756389937076,0.3618,112960.0,112950.0,0.69562144]
[1756389937476,0.3618,112960.0,112950.0,0.1391084]
[1756389937675,0.3618,112960.0,112950.0,0.69562144]
[1756389938070,0.3618,112960.0,112950.0,0.94562144]
[1756389938576,0.3628,112960.0,112950.0,0.94562144]
[1756389940775,0.3608,113010.0,112990.0,0.02041]
[1756389940975,0.4111,113030.0,113020.0,0.0884736]
[1756389941173,0.4111,113030.0,113020.0,2.22112664]
[1756389941174,0.02097,113030.0,113020.0,2.22112664]
[1756389941370,0.0503,113040.0,113030.0,0.1390395]
[1756389941585,0.07463829,113040.0,113030.0,0.70456124]